bitfinex-derivatives/quotes_ETHF0:USTF0_20250810
["timestamp","ask_amount","ask_price","bid_price","bid_amount"]
[1754842980313,0.3608,4233.8,4233.7,1.2895]
[1754842980512,0.7511826,4234.2,4234.0,0.47231]
[1754842980815,22.6799,4234.1,4234.0,0.6355]
[1754842981217,1.26704519,4235.4,4234.0,1.5559]
[1754842981417,2.36001,4237.0,4233.8,1.18084]
[1754842981418,0.6972,4235.0,4234.9,0.6355]
[1754842981610,22.2491,4235.0,4234.2,0.3927]
[1754842981815,2.1517826,4234.3,4234.2,2.0282]
[1754842982021,23.7667826,4234.3,4234.2,2.0282]
[1754842982212,23.6296826,4234.3,4234.2,2.0282]
[1754842982417,23.4450826,4234.3,4234.2,2.0282]
[1754842982815,22.6939,4234.3,4234.2,2.0282]
[1754842983014,22.3122,4234.3,4234.2,2.0282]
[1754842983215,23.4450826,4234.3,4234.2,1.2895]
[1754842983417,23.4450826,4234.3,4234.2,1.5559]
[1754842983616,23.7667826,4234.3,4234.2,1.5559]
[1754842983810,23.7667826,4234.3,4234.2,1.2895]
[1754842983811,21.615,4234.3,4234.2,1.2895]
[1754842984114,22.6939,4234.3,4234.2,1.5559]
[1754842984913,23.7667826,4234.3,4234.2,1.5559]
[1754842986519,23.7667826,4234.3,4234.2,1.562]
[1754842987922,0.6032,4233.9,4233.8,0.64863]
[1754842988221,23.7525826,4233.9,4233.8,1.47403]
[1754842988521,23.7525826,4233.9,4233.8,2.01523]
[1754842989917,23.7525826,4233.9,4233.8,0.91734]
[1754842990321,23.7525826,4233.9,4233.8,1.08674]
[1754842990526,23.7525826,4233.9,4233.8,2.01524]
[1754842991518,23.7525826,4233.9,4233.8,1.5429]
[1754842991723,0.47234,4233.8,4233.0,0.9297]
[1754842992024,1.3543826,4233.5,4233.4,1.08678]
[1754842992228,22.9533826,4233.5,4233.4,1.08678]
[1754842992521,22.9533826,4233.5,4232.6,1.18119]
[1754842992522,23.7455826,4233.5,4232.2,1.1813]
[1754842992720,2.1465826,4233.2,4233.1,1.47412]
[1754842993024,23.7445826,4233.2,4233.1,1.74662]
[1754842993222,23.7445826,4233.2,4233.1,2.01532]
[1754842993922,23.6083826,4233.2,4233.1,2.01532]
[1754842994226,22.6845,4233.2,4233.1,2.01532]
[1754842997127,23.6083826,4233.2,4233.1,2.01532]
[1754842997327,1.3954,4233.0,4232.9,0.5579]
[1754842997630,22.9814,4233.0,4232.9,1.2742]
[1754842997822,22.8452,4233.0,4232.9,1.2742]
[1754842998026,22.8452,4233.0,4232.9,1.5429]
[1754843001130,22.2776,4233.0,4232.9,1.5429]
[1754843001436,22.0165,4233.0,4232.9,1.5429]
[1754843003932,0.4305,4233.5,4233.4,1.08559]
[1754843004138,22.3224,4233.5,4233.4,2.01529]
[1754843004634,22.9784,4233.5,4233.4,2.01529]
[1754843004825,22.9784,4233.5,4233.4,1.2704]
[1754843005021,22.9784,4233.5,4233.4,0.8819]
[1754843005232,22.9784,4233.5,4233.4,0.6144]
[1754843005631,22.9784,4233.5,4233.4,0.445]
[1754843005830,23.54394585,4233.5,4233.4,0.445]
[1754843006032,23.54394585,4233.5,4233.4,0.2687]
[1754843006227,1.3954,4233.4,4233.3,0.2687]
[1754843007243,1.3954,4233.4,4233.3,0.445]
[1754843007537,1.3954,4233.4,4233.3,1.5429]
[1754843011433,1.3954,4233.4,4233.3,1.2704]
[1754843014242,1.96122426,4233.4,4233.3,0.6144]
[1754843016536,0.7634,4233.2,4233.1,1.08582]
[1754843016731,23.7729826,4233.2,4233.1,1.48272]
[1754843016930,23.7729826,4233.2,4233.1,1.74282]
[1754843017138,23.7729826,4233.2,4233.1,2.01882]
[1754843018441,23.7729826,4233.2,4233.1,1.5464]
[1754843019240,24.3393784,4233.2,4233.1,0.4442]
[1754843019449,1.4398,4233.1,4233.0,0.47243]
[1754843019740,1.4398,4233.1,4233.0,0.91663]
[1754843019938,1.4398,4233.1,4233.0,1.31353]
[1754843020139,1.4398,4233.1,4233.0,1.48273]
[1754843020540,2.00642165,4233.1,4233.0,0.4442]
[1754843020732,0.6764,4232.1,4231.9,0.47255]
[1754843021043,1.4398,4232.1,4232.0,1.2704]
[1754843021234,23.0218,4232.1,4232.0,1.2704]
[1754843021636,23.59478055,4232.1,4232.0,0.4442]
[1754843021944,23.59478055,4232.1,4231.7,0.86947]
[1754843022136,1.4398,4231.9,4231.8,0.4442]
[1754843022641,1.4398,4231.9,4231.1,1.18161]
[1754843022642,0.4446,4231.9,4231.1,1.18161]
[1754843022843,1.2578,4231.4,4231.3,2.01902]
[1754843023031,23.5909826,4231.4,4231.3,2.01902]
[1754843023230,23.4541826,4231.4,4231.3,2.01902]
[1754843023841,23.7731826,4231.4,4231.3,0.8735]
[1754843024140,23.7731826,4231.4,4231.3,1.5464]
[1754843024843,24.34637081,4231.4,4231.3,2.01902]
[1754843025039,23.7731826,4231.4,4231.3,2.01902]
[1754843025345,24.34641427,4231.4,4231.3,2.01902]
[1754843025942,24.34641427,4231.4,4231.3,1.5464]
[1754843026238,23.59623167,4231.4,4231.3,1.5464]
[1754843026448,1.4573725,4232.3,4231.3,1.5464]
[1754843026449,1.26704519,4232.6,4232.4,0.5992]
[1754843026744,1.26704519,4232.6,4230.7,0.7511826]
[1754843026745,21.608,4232.7,4231.9,1.18139]
[1754843026948,1.1446,4232.7,4232.6,0.6134]
[1754843027240,0.6266,4232.5,4232.0,0.2743]
[1754843027444,1.3777826,4232.1,4232.0,1.53564]
[1754843027646,23.9305826,4232.1,4232.0,1.53564]
[1754843027846,23.9305826,4232.1,4232.0,1.0631]
[1754843028141,23.9305826,4232.1,4232.0,1.3374]
[1754843028742,23.6711826,4232.1,4232.0,1.80994]
[1754843029646,23.9305826,4232.1,4232.0,1.3374]
[1754843030040,23.9305826,4232.1,4232.0,1.0614]
[1754843030235,23.9305826,4232.1,4232.0,0.6134]
[1754843031148,23.9305826,4232.1,4232.0,1.0773]
[1754843031536,23.9305826,4232.1,4232.0,0.6134]
[1754843031735,1.59034,4232.0,4231.9,0.1699]
[1754843031946,1.5624,4232.0,4231.9,0.91675]
[1754843032140,1.5624,4232.0,4231.9,1.08595]
[1754843032536,2.03494,4232.0,4231.9,0.6134]
[1754843032742,1.5624,4232.0,4231.9,0.6134]
[1754843033142,1.5624,4232.0,4231.9,1.3374]
[1754843033443,1.303,4232.0,4231.9,1.3374]
[1754843033946,1.5624,4232.0,4231.9,1.3374]
[1754843034849,1.5624,4232.0,4231.9,1.0614]
[1754843035053,1.5624,4232.0,4231.9,0.6134]
[1754843035952,1.5624,4231.7,4231.6,0.1699]
[1754843036150,23.9225826,4231.7,4231.6,0.3391]
[1754843036344,23.9225826,4231.7,4231.6,0.6134]
[1754843036539,23.9225826,4231.7,4231.6,0.8013]
[1754843036743,23.9225826,4231.7,4231.6,1.0773]
[1754843037046,23.9225826,4231.7,4231.6,1.3374]
[1754843038749,23.9225826,4231.7,4231.6,1.0614]
[1754843038950,23.9225826,4231.7,4231.6,0.8013]
[1754843039755,23.9225826,4231.7,4231.6,1.0773]
[1754843040051,23.9225826,4231.7,4231.6,1.3374]
[1754843040945,0.47253,4232.2,4231.7,0.2743]
[1754843041248,0.47253,4232.2,4232.1,1.3374]
[1754843041249,2.3135826,4232.2,4232.1,1.3374]
[1754843041449,23.9115826,4232.2,4232.1,1.67050376]
[1754843041650,24.48035969,4232.2,4232.1,1.67050376]
[1754843041851,23.9115826,4232.2,4232.1,1.67050376]
[1754843042054,24.48031044,4232.2,4232.1,0.33310376]
[1754843042352,24.48031044,4232.2,4231.2,1.74303]
[1754843042353,1.5624,4231.3,4231.2,1.74303]
[1754843042554,23.9125826,4231.3,4231.2,2.01903]
[1754843042858,23.9125826,4231.3,4231.2,1.5464]
[1754843044552,23.6531826,4231.3,4231.2,1.5464]
[1754843044759,23.9125826,4231.3,4231.2,1.5464]
[1754843045259,23.6531826,4231.3,4231.2,1.5464]
[1754843047257,23.6531826,4231.3,4231.2,1.5472]
[1754843048659,23.9268826,4231.3,4231.2,1.5472]
[1754843049861,23.9268826,4231.3,4231.2,1.2712]
[1754843050060,23.9268826,4231.3,4231.2,1.5332]
[1754843051854,23.82107851,4231.3,4231.1,0.47264]
[1754843052054,23.82107851,4231.3,4230.9,0.47266]
[1754843052055,1.1413,4231.0,4230.9,0.47266]
[1754843052260,23.9157826,4231.0,4230.9,0.73296]
[1754843052462,24.4863875,4231.0,4230.9,0.73296]
[1754843053161,1.1295,4230.9,4230.8,0.47267]
[1754843053462,2.1442049,4230.9,4230.8,0.47267]
[1754843053663,0.6027,4230.4,4230.3,1.36053]
[1754843053857,22.8919,4230.4,4230.3,1.36053]
[1754843054059,23.1656,4230.4,4230.3,1.36053]
[1754843054259,23.1656,4230.4,4230.3,2.00723]
[1754843057264,0.9709,4230.3,4230.2,0.82944]
[1754843057468,2.3247826,4230.3,4230.2,0.82944]
[1754843057663,2.3247826,4230.3,4230.2,1.21584]
[1754843057863,2.3247826,4230.3,4230.2,1.47614]
[1754843058069,0.6027,4229.9,4229.8,0.617]
[1754843058270,22.1957,4229.9,4229.8,1.2725]
[1754843058468,23.5176105,4229.9,4229.8,1.5345]
[1754843058770,24.4885105,4229.9,4229.8,1.5345]
[1754843059271,24.48902451,4229.9,4229.8,1.5345]
[1754843059472,24.21532451,4229.9,4229.8,1.5345]
[1754843060575,23.62512451,4229.9,4229.8,1.5345]
[1754843060781,23.34772451,4229.9,4229.8,1.5345]
[1754843060973,0.57124191,4229.9,4229.8,1.5345]
[1754843061173,1.1295,4230.8,4230.7,1.5345]
[1754843061378,22.7245,4230.8,4230.7,1.5345]
[1754843061577,23.29574191,4230.8,4230.7,1.5345]
[1754843061978,22.16624191,4230.8,4230.7,1.5345]
[1754843063276,0.57124191,4230.8,4230.7,1.5345]
[1754843063577,1.86974519,4231.9,4231.8,0.2691]
[1754843063781,23.1686,4231.9,4231.8,1.5345]
[1754843064080,1.1295,4231.5,4231.4,2.0071]
[1754843064280,22.7245,4231.5,4231.4,2.0071]
[1754843064975,22.7245,4231.5,4231.4,1.5345]
[1754843065175,23.1686,4231.5,4231.4,1.5345]
[1754843069483,22.8949,4231.5,4231.4,1.5345]
[1754843070173,23.1686,4231.5,4231.4,1.5345]
[1754843070481,1.5736,4231.5,4231.4,1.5345]
[1754843070682,23.1666,4231.5,4231.4,1.5345]
[1754843072980,23.73663063,4231.5,4231.4,1.5345]
[1754843077885,0.3605,4231.4,4231.2,0.72572]
[1754843078086,23.9194826,4231.3,4231.2,0.2531]
[1754843078284,24.48951323,4231.3,4231.2,0.2531]
[1754843078784,0.6208,4231.1,4231.0,0.2531]
[1754843078984,0.6208,4230.9,4230.8,0.4401]
[1754843079285,23.1683,4230.9,4230.8,1.0117]
[1754843079479,23.1683,4230.9,4230.8,0.6114]
[1754843079686,0.6208,4230.7,4230.6,0.4401]
[1754843079888,23.1683,4230.7,4230.6,1.0117]
[1754843080089,23.1683,4230.7,4230.6,1.2763]
[1754843080290,23.1683,4230.7,4230.6,1.5519]
[1754843081687,23.1683,4230.7,4230.6,0.4401]
[1754843082488,1.5773,4230.4,4230.3,0.6114]
[1754843082689,1.5773,4230.4,4230.0,0.7586]
[1754843082690,1.297,4230.1,4230.0,0.7586]
[1754843082990,1.297,4230.1,4229.9,0.2756]
[1754843082991,22.68456,4230.1,4229.6,0.4728]
[1754843083192,1.5773,4230.0,4229.9,0.3583]
[1754843083393,2.3284826,4230.0,4229.9,0.187]
[1754843083581,0.9565,4229.9,4229.8,0.2531]
[1754843083786,0.47282,4229.5,4229.4,1.01668066]
[1754843084003,23.64212,4229.5,4229.4,1.01668066]
[1754843088598,23.64212,4229.5,4229.4,1.26978066]
[1754843088797,23.64212,4229.5,4229.4,1.01668066]
[1754843090792,2.05021,4228.7,4228.6,1.2763]
[1754843091001,23.64621,4228.7,4228.6,0.876]
[1754843091385,0.47296,4228.3,4227.8,0.47301]
[1754843091602,23.1733,4228.2,4228.1,1.5519]
[1754843091897,23.9244826,4228.2,4228.1,1.5519]
[1754843092087,24.3974526,4228.2,4228.1,1.5519]
[1754843092286,23.9244826,4228.2,4228.1,1.5519]
[1754843092690,23.9244826,4228.2,4228.1,2.02488]
[1754843093288,23.9244826,4228.2,4228.1,1.5519]
[1754843094100,23.6441826,4228.2,4228.1,1.5519]
[1754843094601,23.9244826,4228.2,4228.1,1.5519]
[1754843095497,23.6441826,4228.2,4228.1,0.187]
[1754843095699,1.297,4227.9,4227.8,0.1713]
[1754843095896,23.6481826,4227.9,4227.8,0.6114]
[1754843096097,23.9284826,4227.9,4227.8,1.0117]
[1754843096298,23.9284826,4227.9,4227.8,1.2763]
[1754843096496,23.9284826,4227.9,4227.8,1.0232]
[1754843096798,23.9284826,4227.9,4227.8,0.876]
[1754843097000,23.9284826,4227.9,4227.8,0.4244]
[1754843097200,23.9284826,4227.9,4227.8,0.6114]
[1754843099308,2.05031,4227.8,4227.7,0.187]
[1754843099606,0.47304,4227.6,4227.5,0.5873]
[1754843099806,22.7251,4227.6,4227.5,1.5519]
[1754843100007,22.3127,4227.6,4227.5,1.5519]
[1754843100301,22.7251,4227.6,4227.5,1.5519]
[1754843100505,1.4273826,4228.6,4227.6,0.6534]
[1754843100703,1.8742826,4228.6,4228.5,1.5519]
[1754843100910,23.4762826,4228.6,4228.5,1.5519]
[1754843101109,22.8000826,4228.6,4228.5,1.5519]
[1754843101308,23.0638826,4228.6,4228.5,1.5519]
[1754843101705,23.4762826,4228.6,4228.5,1.88298121]
[1754843102104,23.9304826,4228.6,4228.5,1.88298121]
[1754843102807,23.9304826,4228.6,4228.5,0.94248121]
[1754843103012,23.9304826,4228.6,4228.5,1.34278121]
[1754843103214,23.9304826,4228.6,4228.5,1.88298121]
[1754843104312,23.9304826,4228.6,4228.5,1.60738121]
[1754843104910,23.9304826,4228.6,4228.5,0.94248121]
[1754843105305,23.9304826,4228.6,4228.5,1.34278121]
[1754843105511,23.9304826,4228.6,4228.5,1.60738121]
[1754843106208,23.9304826,4228.6,4228.5,1.87838121]
[1754843108909,23.9304826,4228.6,4228.5,1.87941112]
[1754843109416,23.9304826,4228.6,4228.5,1.87963023]
[1754843109810,23.6501826,4228.6,4228.5,1.87963023]
[1754843110217,23.9191826,4228.6,4228.5,1.87963023]
[1754843110612,34.53589,4229.0,4228.8,1.5866]
[1754843110913,34.063,4229.0,4228.9,1.91893023]
[1754843111110,55.9307,4229.0,4228.9,1.91893023]
[1754843111308,55.666,4229.0,4228.9,1.91893023]
[1754843113016,21.603,4229.0,4228.9,1.91893023]
[1754843113721,1.4629826,4229.3,4229.2,2.05946]
[1754843114014,23.0649826,4229.3,4229.2,1.91893023]
[1754843114219,24.49297678,4229.3,4229.2,1.91893023]
[1754843114620,24.49297678,4229.3,4229.2,0.33233023]
[1754843115117,24.49297678,4229.3,4228.8,0.2738]
[1754843115317,1.5704,4228.4,4228.3,1.0418]
[1754843115622,23.9235826,4228.4,4228.3,1.0418]
[1754843115816,23.9235826,4228.4,4228.3,1.5866]
[1754843116717,22.0491,4228.8,4228.7,1.5866]
[1754843117023,23.6453,4228.8,4228.7,1.5866]
[1754843117322,23.1724,4228.8,4228.7,1.5866]
[1754843118923,23.74214203,4228.8,4228.7,0.6384]
[1754843119116,1.5704,4228.5,4228.4,0.1846]
[1754843119420,23.9735826,4228.5,4228.4,0.4584]
[1754843119620,24.54337509,4228.5,4228.4,0.4584]
[1754843120021,24.54337509,4228.5,4228.4,0.6384]
[1754843120220,24.54337509,4228.5,4228.4,1.0453]
[1754843120916,22.22179249,4228.5,4228.4,1.5866]
[1754843121117,21.652,4228.5,4228.4,1.5866]
[1754843122416,21.654,4228.7,4228.4,0.9517]
[1754843122622,0.2744,4229.3,4229.2,0.99726]
[1754843122822,22.7826,4229.3,4229.2,0.5244]
[1754843123018,23.3524259,4229.3,4229.2,0.5244]
[1754843123323,23.2224,4229.3,4229.2,1.1691]
[1754843123919,24.54329181,4229.3,4229.2,0.4584]
[1754843124123,0.8772,4228.6,4228.5,1.11133]
[1754843124324,23.9745826,4228.6,4228.5,1.64203]
[1754843124716,0.7511826,4229.1,4228.9,0.47289]
[1754843124917,2.3215826,4229.1,4229.0,1.1691]
[1754843125126,23.9795826,4229.1,4229.0,1.1691]
[1754843125321,24.54931702,4229.1,4229.0,1.1691]
[1754843126527,24.54931702,4229.1,4229.0,0.6384]
[1754843126824,24.06969702,4229.1,4228.8,0.2738]
[1754843127025,1.5704,4228.9,4228.8,0.4584]
[1754843127225,1.5704,4228.9,4228.8,0.6384]
[1754843127722,1.5704,4228.9,4228.8,0.7383]
[1754843127929,1.5704,4228.9,4228.8,1.1691]
[1754843130837,2.04329,4228.9,4228.8,0.6384]
[1754843131229,1.5704,4228.9,4228.8,0.6384]
[1754843131934,1.3014,4228.8,4228.7,0.4729]
[1754843132134,23.2094,4228.8,4228.7,1.1113]
[1754843132529,23.2094,4228.8,4228.7,1.2112]
[1754843132730,23.2094,4228.8,4228.7,1.4822]
[1754843133035,23.77973084,4228.8,4228.7,0.6384]
[1754843133830,23.77973084,4228.8,4228.7,0.7383]
[1754843134134,23.2094,4228.8,4228.7,1.1692]
[1754843134838,1.1306,4229.2,4229.1,0.7983]
[1754843135137,22.7596,4229.2,4229.1,0.7983]
[1754843135336,23.50076118,4229.2,4229.1,1.1692]
[1754843135537,23.77046118,4229.2,4229.1,1.1692]
[1754843136040,23.33196118,4229.2,4229.1,1.1692]
[1754843136229,1.1306,4229.2,4229.1,1.1692]
[1754843136427,0.7231,4229.5,4229.4,1.59323]
[1754843136631,0.2697,4229.8,4229.7,0.98019]
[1754843136632,0.4491,4229.8,4229.7,0.98019]
[1754843136834,22.0801,4229.8,4229.7,0.98019]
[1754843137031,22.47847717,4229.8,4229.7,0.98019]
[1754843137236,21.631,4229.8,4229.7,1.59319]
[1754843140333,0.274,4230.4,4230.3,0.82033]
[1754843140543,22.0811,4230.4,4230.3,0.98013]
[1754843141139,22.0811,4230.4,4230.3,1.59313]
[1754843141841,22.7523,4230.4,4230.3,1.59313]
[1754843142034,21.632,4230.4,4230.3,1.59313]
[1754843142844,22.5803,4230.4,4230.3,1.59313]
[1754843143042,22.7523,4230.4,4230.3,1.59313]
[1754843143242,23.2035,4230.4,4230.3,1.59313]
[1754843143438,23.2035,4230.4,4230.3,1.1204]
[1754843143640,23.2035,4230.4,4230.3,0.7021]
[1754843143842,1.5715,4230.3,4230.2,0.47274]
[1754843144039,0.6306,4229.9,4229.8,0.82038]
[1754843144234,23.1935,4229.9,4229.8,0.6023]
[1754843144544,23.1935,4229.9,4229.8,0.4331]
[1754843145042,0.6306,4229.5,4229.4,1.17493]
[1754843145237,23.1955,4229.5,4229.4,1.17493]
[1754843145438,23.1955,4229.5,4229.4,0.4331]
[1754843145638,23.1955,4229.5,4229.4,0.7021]
[1754843145841,22.9258,4229.5,4229.4,1.1204]
[1754843146641,23.1955,4229.5,4229.4,1.1204]
[1754843146846,23.1955,4229.5,4229.4,0.6023]
[1754843147244,23.1955,4229.5,4229.4,0.4331]
[1754843147748,1.5715,4229.1,4229.0,1.07518]
[1754843147949,23.9446826,4229.1,4229.0,0.4331]
[1754843148139,23.9446826,4229.1,4228.9,0.47289]
[1754843148339,1.1129,4229.0,4228.9,0.47289]
[1754843148641,1.5715,4229.0,4228.9,0.47289]
[1754843150143,1.5715,4229.0,4228.9,0.72759]
[1754843150845,1.5715,4229.0,4228.9,1.17499]
[1754843151153,0.6712,4229.5,4229.4,0.6023]
[1754843151340,23.1915,4229.5,4229.4,0.6023]
[1754843151645,1.5715,4229.4,4229.3,0.47284]
[1754843151842,0.6306,4229.4,4229.2,0.47285]
[1754843152042,1.5715,4229.3,4229.2,0.72755]
[1754843152351,1.5715,4229.3,4229.2,1.07515]
[1754843153847,1.5715,4229.3,4229.2,1.17495]
[1754843154450,1.5715,4229.3,4229.2,1.43345]
[1754843154650,1.5715,4229.3,4229.2,1.59325]
[1754843155054,34.061,4230.1,4229.5,0.98022]
[1754843155055,1.1203,4229.6,4229.5,0.98022]
[1754843155252,22.7323,4229.6,4229.5,1.59322]
[1754843155449,22.9138,4229.6,4229.5,1.59322]
[1754843155652,23.1835,4229.6,4229.5,1.59322]
[1754843155851,23.1835,4229.6,4229.5,1.1204]
[1754843156054,0.6306,4229.3,4229.2,0.82045]
[1754843156252,23.1855,4229.3,4229.2,0.82045]
[1754843156555,23.1855,4229.3,4229.2,1.07515]
[1754843156761,23.1855,4229.3,4229.2,1.17495]
[1754843157054,22.9115,4229.3,4229.1,0.47286]
[1754843157255,22.9115,4229.3,4228.9,0.47288]
[1754843157256,0.4491,4229.0,4228.9,0.47288]
[1754843157451,23.1855,4229.0,4228.9,1.17498]
[1754843157758,23.1855,4229.0,4228.9,1.59328]
[1754843158658,23.1855,4229.0,4228.9,1.1204]
[1754843159251,1.5715,4228.8,4228.7,1.59331]
[1754843159456,1.5715,4228.8,4228.7,1.43351]
[1754843160251,1.5715,4228.8,4228.7,1.17501]
[1754843160752,1.5715,4228.8,4228.7,1.59331]
[1754843161561,1.3018,4228.8,4228.7,1.59331]
[1754843163057,1.5715,4229.5,4229.4,0.82043]
[1754843163259,22.0661,4229.5,4229.4,1.59323]
[1754843164160,21.617,4229.5,4229.4,1.59323]
[1754843166664,34.061,4230.1,4230.0,0.47277]
[1754843166859,56.94470741,4230.1,4230.0,1.62037]
[1754843167057,55.687,4230.1,4230.0,1.62037]
[1754843167262,56.3751,4230.1,4230.0,1.62037]
[1754843168365,21.626,4230.1,4230.0,1.62037]
[1754843168955,22.7477,4230.5,4230.4,0.80332]
[1754843169262,22.7477,4230.5,4230.4,1.62032]
[1754843169864,23.1831,4230.5,4230.4,1.62032]
[1754843170263,22.7477,4230.5,4230.4,1.62032]
[1754843170567,22.0596,4230.5,4230.4,1.62032]
[1754843172063,22.7477,4230.5,4230.4,1.62032]
[1754843172263,22.9243,4230.5,4230.4,1.62032]
[1754843172466,23.1831,4230.5,4230.4,1.62032]
[1754843173462,23.93451393,4230.5,4230.4,1.10102]
[1754843173666,23.93451393,4230.5,4230.4,0.6283]
[1754843174671,1.5571,4230.4,4230.3,0.47273]
[1754843175167,1.5571,4230.4,4230.3,0.91473]
[1754843175367,1.5571,4230.4,4230.3,0.47273]
[1754843176968,1.5571,4230.4,4230.3,1.10103]
[1754843177661,1.5571,4230.4,4230.3,0.91473]
[1754843177860,1.5571,4230.4,4230.3,0.47273]
[1754843178269,1.5571,4230.4,4230.3,1.10103]
[1754843178472,1.5571,4230.4,4230.3,1.20043]
[1754843179674,1.5571,4230.4,4230.3,1.46263]
[1754843180776,1.5571,4230.4,4230.3,1.20043]
[1754843181071,1.5571,4230.4,4230.3,1.10103]
[1754843181471,1.5571,4230.4,4230.3,1.20043]
[1754843181673,1.5571,4230.4,4230.3,1.46263]
[1754843183173,21.626,4230.5,4230.3,1.26013]
[1754843183372,0.9509,4230.4,4230.3,1.62173]
[1754843183572,1.1217,4230.4,4230.3,1.62173]
[1754843183976,21.626,4230.5,4230.3,1.62173]
[1754843184275,21.626,4230.5,4230.4,1.149]
[1754843184476,21.9062,4230.5,4230.4,1.149]
[1754843184669,22.7477,4230.5,4230.4,1.149]
[1754843185171,22.9243,4230.5,4230.4,1.149]
[1754843185376,23.1831,4230.5,4230.4,1.149]
[1754843188769,21.626,4230.5,4230.4,1.149]
[1754843188972,22.7477,4230.5,4230.4,1.149]
[1754843189173,22.0596,4230.5,4230.4,0.6283]
[1754843189374,23.1831,4230.5,4230.4,0.7277]
[1754843189679,23.1831,4230.5,4230.4,0.6283]
[1754843189979,23.1831,4230.5,4230.4,0.7277]
[1754843190177,23.65581,4230.5,4230.3,0.47273]
[1754843190383,1.5571,4230.4,4230.3,0.74233]
[1754843190582,1.5571,4230.4,4230.3,1.10103]
[1754843190882,1.5571,4230.4,4230.3,1.20043]
[1754843192184,1.5571,4230.4,4230.3,1.10103]
[1754843192982,1.5571,4230.4,4230.3,0.47273]
[1754843194077,1.5571,4230.4,4230.3,0.74233]
[1754843195283,1.5571,4230.4,4230.3,0.91473]
[1754843196588,0.6223,4229.9,4229.8,1.20179]
[1754843196888,23.1657,4229.9,4229.8,1.47259]
[1754843197079,23.1657,4229.9,4229.8,1.10239]
[1754843197275,23.1657,4229.9,4229.8,1.20179]
[1754843197681,23.1657,4229.9,4229.8,1.63159]
[1754843198281,22.8953,4229.9,4229.8,1.63159]
[1754843198987,22.5429,4229.9,4229.8,1.63159]
[1754843199283,1.5697,4230.7,4230.6,0.6296]
[1754843199484,23.1657,4230.7,4230.6,0.9998]
[1754843199684,23.28560279,4230.7,4230.6,1.1588]
[1754843200990,22.715,4230.7,4230.6,1.1588]
[1754843201791,23.1657,4230.7,4230.6,1.1588]
[1754843202491,1.5697,4230.6,4230.5,0.2656]
[1754843202785,1.119,4230.0,4229.9,1.63158]
[1754843203090,21.596,4230.1,4229.9,1.63158]
[1754843203291,1.119,4230.3,4230.2,0.99574]
[1754843203483,23.1657,4230.3,4230.2,1.63154]
[1754843209593,0.677,4230.8,4230.7,0.47269]
[1754843209804,22.713,4230.8,4230.7,1.63149]
[1754843210097,23.28355788,4230.8,4230.7,1.63149]
[1754843210297,23.55395788,4230.8,4230.7,1.63149]
[1754843211300,22.9834,4230.8,4230.7,1.63149]
[1754843213697,22.713,4230.8,4230.7,1.63149]
[1754843213904,0.442,4230.8,4230.7,1.63149]
[1754843214097,22.712,4230.8,4230.7,1.63149]
[1754843215700,22.9824,4230.8,4230.7,1.63149]
[1754843215900,23.1627,4230.8,4230.7,1.63149]
[1754843216409,23.73315668,4230.8,4230.7,0.47269]
[1754843216605,0.9474,4230.7,4230.6,0.4727]
[1754843216908,2.32111393,4230.7,4230.6,0.4727]
[1754843217206,2.32111393,4230.7,4230.5,0.4727]
[1754843217207,2.0424,4230.6,4230.5,0.4727]
[1754843217404,23.6344,4230.6,4230.5,0.4727]
[1754843217601,1.09501,4230.5,4230.4,0.47272]
[1754843217802,2.04241,4230.5,4230.4,0.47272]
[1754843218004,1.5697,4230.5,4230.4,0.47272]
[1754843218506,1.5697,4230.5,4230.4,1.10232]
[1754843218901,1.5697,4230.5,4230.4,0.47272]
[1754843220606,1.5697,4230.5,4230.4,0.73832]
[1754843220808,1.5697,4230.5,4230.4,0.91862]
[1754843221013,1.5697,4230.5,4230.4,1.10232]
[1754843221310,1.5697,4230.5,4230.4,1.63152]
[1754843225620,1.5505,4230.5,4230.4,0.99602]
[1754843226117,1.5505,4230.5,4230.4,1.64652]
[1754843231015,1.5505,4230.5,4230.4,0.65642]
[1754843231322,1.2929,4230.5,4230.4,1.64132]
[1754843231811,1.5505,4230.5,4230.4,1.64132]
[1754843234324,1.5505,4230.5,4230.4,0.47272]
[1754843234524,1.5505,4230.5,4230.4,1.09432]
[1754843234725,1.5505,4230.5,4230.4,1.19392]
[1754843235025,1.5505,4230.5,4230.4,1.46992]
[1754843235221,1.5505,4230.5,4230.4,1.19392]
[1754843235527,2.02321,4230.5,4230.4,0.7212]
[1754843235720,2.1213077,4230.5,4230.4,0.6216]
[1754843237521,2.1213077,4230.5,4230.4,0.7212]
[1754843238125,2.1213077,4230.5,4230.4,0.9972]
[1754843241126,0.5708077,4230.5,4230.4,0.6216]
[1754843241428,1.2448077,4230.5,4230.4,1.1565]
[1754843241729,0.5708077,4230.5,4230.4,1.1565]
[1754843241930,1.2448077,4230.5,4230.4,1.1565]
[1754843242131,0.674,4230.5,4230.4,1.1565]
[1754843242430,1.1215,4230.5,4230.4,1.1565]
[1754843243428,0.4475,4231.0,4230.9,0.47267]
[1754843243635,0.4475,4231.3,4231.2,0.97863]
[1754843243827,22.7065,4231.3,4231.2,0.97863]
[1754843244130,23.27716165,4231.3,4231.2,1.62913]
[1754843245026,21.8496,4231.3,4231.2,1.62913]
[1754843245831,22.5236,4231.3,4231.2,1.62913]
[1754843247032,1.27035356,4232.6,4231.9,1.19415]
[1754843247033,0.4475,4232.0,4231.9,1.19415]
[1754843247229,22.0315,4232.0,4231.9,1.63005]
[1754843248027,21.584,4232.0,4231.9,1.63005]
[1754843249019,22.7055,4232.0,4231.9,1.63005]
[1754843250633,21.584,4232.0,4231.9,1.63005]